[Event "*** SCC Grand Prix: Titled Tuesday Blitz"]
[Site "Chess.com"]
[Date "2020.06.09"]
[Round "5"]
[White "Gareth-Bale11"]
[Black "Karateloru"]
[Result "0-1"]
[WhiteElo "2782"]
[BlackElo "2626"]
[TimeControl "180+1"]
[EndTime "9:55:35 PDT"]
[Termination "Karateloru won by resignation"]

1. e4 {[%clk 0:02:59.3]} 1... c5 {[%clk 0:02:58]} 2. Nf3 {[%clk 0:02:54.5]} 2...
e6 {[%clk 0:02:58.5]} 3. g3 {[%clk 0:02:53.6]} 3... Nc6 {[%clk 0:02:58]} 4. Bg2
{[%clk 0:02:53.3]} 4... Nf6 {[%clk 0:02:58.5]} 5. Nc3 {[%clk 0:02:53]} 5... d5
{[%clk 0:02:57]} 6. exd5 {[%clk 0:02:52.5]} 6... Nxd5 {[%clk 0:02:57.9]} 7. O-O
{[%clk 0:02:51.7]} 7... Nxc3 {[%clk 0:02:57.9]} 8. bxc3 {[%clk 0:02:50.3]} 8...
Be7 {[%clk 0:02:58.5]} 9. Re1 {[%clk 0:02:43.3]} 9... O-O {[%clk 0:02:58.8]} 10.
d3 {[%clk 0:02:43.7]} 10... Bf6 {[%clk 0:02:58.1]} 11. Bd2 {[%clk 0:02:42.8]}
11... Qc7 {[%clk 0:02:48.8]} 12. h4 {[%clk 0:02:40.2]} 12... b6 {[%clk
0:02:46.4]} 13. Bf4 {[%clk 0:02:29.1]} 13... Qd7 {[%clk 0:02:46.4]} 14. d4
{[%clk 0:01:58.1]} 14... cxd4 {[%clk 0:02:22.6]} 15. Nxd4 {[%clk 0:01:45.4]}
15... Bxd4 {[%clk 0:02:22.6]} 16. cxd4 {[%clk 0:01:44.7]} 16... Bb7 {[%clk
0:02:22.9]} 17. h5 {[%clk 0:01:44.3]} 17... Rad8 {[%clk 0:02:19.2]} 18. c3
{[%clk 0:01:32.6]} 18... Na5 {[%clk 0:02:13.4]} 19. Bxb7 {[%clk 0:01:29.9]}
19... Qxb7 {[%clk 0:02:12.8]} 20. h6 {[%clk 0:01:30.8]} 20... g6 {[%clk
0:02:12.2]} 21. Qg4 {[%clk 0:01:23.6]} 21... Nc4 {[%clk 0:02:07.7]} 22. Bg5
{[%clk 0:01:05.9]} 22... Rd6 {[%clk 0:01:53.1]} 23. Bf6 {[%clk 0:00:57.3]} 23...
Nd2 {[%clk 0:01:49.8]} 24. Re3 {[%clk 0:00:52.8]} 24... Rd5 {[%clk 0:01:46.6]}
25. Be5 {[%clk 0:00:40]} 25... Nc4 {[%clk 0:01:43]} 26. Qf3 {[%clk 0:00:35.2]}
26... f6 {[%clk 0:01:40.2]} 27. Bf4 {[%clk 0:00:21.5]} 27... Nxe3 {[%clk
0:01:40.2]} 28. Bxe3 {[%clk 0:00:22.4]} 28... Qd7 {[%clk 0:01:37.7]} 29. c4
{[%clk 0:00:21.5]} 29... Rf5 {[%clk 0:01:37]} 30. Qe4 {[%clk 0:00:21]} 30... Rc8
{[%clk 0:01:36.2]} 31. Rc1 {[%clk 0:00:20.9]} 31... Qc6 {[%clk 0:01:34.9]} 32.
d5 {[%clk 0:00:18.1]} 32... Qd7 {[%clk 0:01:31.7]} 33. dxe6 {[%clk 0:00:17.5]}
33... Qe7 {[%clk 0:01:30.4]} 34. Bf4 {[%clk 0:00:17.4]} 34... Re8 {[%clk
0:01:29.2]} 35. Re1 {[%clk 0:00:16.8]} 35... Rc5 {[%clk 0:01:28.3]} 36. a4
{[%clk 0:00:10.7]} 36... g5 {[%clk 0:01:28.3]} 37. Bc1 {[%clk 0:00:09.3]} 37...
Re5 {[%clk 0:01:28.1]} 0-1

[Event "*** SCC Grand Prix: Titled Tuesday Blitz"]
[Site "Chess.com"]
[Date "2020.06.09"]
[Round "5"]
[White "mbojan"]
[Black "KamlaPasand"]
[Result "1-0"]
[WhiteElo "2634"]
[BlackElo "2225"]
[TimeControl "180+1"]
[EndTime "9:55:37 PDT"]
[Termination "mbojan won by resignation"]

1. e4 {[%clk 0:03:00.9]} 1... c5 {[%clk 0:02:59.5]} 2. Nf3 {[%clk 0:03:00.5]}
2... d6 {[%clk 0:02:59.6]} 3. d4 {[%clk 0:03:00.9]} 3... cxd4 {[%clk 0:03:00.5]}
4. Nxd4 {[%clk 0:03:01.8]} 4... Nf6 {[%clk 0:03:00.9]} 5. Nc3 {[%clk 0:03:02.3]}
5... g6 {[%clk 0:03:01.4]} 6. Be3 {[%clk 0:03:02.6]} 6... Bg7 {[%clk 0:03:01.8]}
7. f3 {[%clk 0:03:03.2]} 7... O-O {[%clk 0:03:02.4]} 8. Qd2 {[%clk 0:03:03.7]}
8... Nc6 {[%clk 0:03:03]} 9. O-O-O {[%clk 0:03:04.3]} 9... Nxd4 {[%clk
0:03:03.2]} 10. Bxd4 {[%clk 0:03:05.2]} 10... Be6 {[%clk 0:03:03.8]} 11. Kb1
{[%clk 0:03:05.6]} 11... Qc7 {[%clk 0:03:04.2]} 12. Nd5 {[%clk 0:03:04.5]} 12...
Bxd5 {[%clk 0:02:29.5]} 13. exd5 {[%clk 0:03:05.4]} 13... Rfc8 {[%clk
0:02:29.2]} 14. a3 {[%clk 0:02:43.8]} 14... b5 {[%clk 0:02:16.9]} 15. Bxb5
{[%clk 0:02:22.3]} 15... Rab8 {[%clk 0:02:16.1]} 16. Bc6 {[%clk 0:02:22.6]}
16... Nxd5 {[%clk 0:02:05.6]} 17. Bxd5 {[%clk 0:02:09.8]} 17... e5 {[%clk
0:01:17.5]} 18. Be3 {[%clk 0:02:05]} 18... e4 {[%clk 0:01:13.2]} 19. Bb3 {[%clk
0:01:50.6]} 19... d5 {[%clk 0:01:13]} 20. Bd4 {[%clk 0:01:39.1]} 20... Bf8
{[%clk 0:00:45.8]} 21. fxe4 {[%clk 0:01:38.5]} 21... a5 {[%clk 0:00:44.9]} 22.
a4 {[%clk 0:01:31.6]} 22... dxe4 {[%clk 0:00:38.9]} 23. Rhf1 {[%clk 0:01:29.6]}
23... Rxb3 {[%clk 0:00:31]} 24. cxb3 {[%clk 0:01:27.2]} 24... Rd8 {[%clk
0:00:31.9]} 25. Bb6 {[%clk 0:01:18.1]} 25... Qxb6 {[%clk 0:00:29]} 26. Qxd8
{[%clk 0:01:18]} 26... Qxb3 {[%clk 0:00:29.9]} 27. Qd5 {[%clk 0:01:14.6]} 27...
Qxd5 {[%clk 0:00:22.8]} 28. Rxd5 {[%clk 0:01:15.5]} 28... Kg7 {[%clk 0:00:23.2]}
29. Rxa5 {[%clk 0:01:13.3]} 29... f5 {[%clk 0:00:23.2]} 30. Kc2 {[%clk
0:01:13.1]} 30... Kf6 {[%clk 0:00:23.2]} 31. Ra8 {[%clk 0:01:12.3]} 31... Bc5
{[%clk 0:00:22.7]} 32. Rc8 {[%clk 0:01:10.1]} 32... Bd4 {[%clk 0:00:22.2]} 33.
a5 {[%clk 0:01:07.1]} 33... g5 {[%clk 0:00:20.4]} 34. Re8 {[%clk 0:01:03.5]} 1-0

[Event "*** SCC Grand Prix: Titled Tuesday Blitz"]
[Site "Chess.com"]
[Date "2020.06.09"]
[Round "5"]
[White "Zurability"]
[Black "Escanor89"]
[Result "0-1"]
[WhiteElo "2669"]
[BlackElo "2527"]
[TimeControl "180+1"]
[EndTime "9:55:38 PDT"]
[Termination "Escanor89 won by resignation"]

1. Nf3 {[%clk 0:03:00.9]} 1... Nf6 {[%clk 0:02:59]} 2. c4 {[%clk 0:03:00.9]}
2... g6 {[%clk 0:02:57.4]} 3. Nc3 {[%clk 0:02:56.5]} 3... Bg7 {[%clk 0:02:56.6]}
4. e4 {[%clk 0:02:54.8]} 4... d6 {[%clk 0:02:56.1]} 5. d4 {[%clk 0:02:55.1]}
5... O-O {[%clk 0:02:55.5]} 6. Be2 {[%clk 0:02:55.5]} 6... Bg4 {[%clk
0:02:54.8]} 7. Be3 {[%clk 0:02:52.5]} 7... Nfd7 {[%clk 0:02:53.7]} 8. O-O {[%clk
0:02:44.1]} 8... c5 {[%clk 0:02:53.1]} 9. d5 {[%clk 0:02:41.2]} 9... Na6 {[%clk
0:02:52.1]} 10. Re1 {[%clk 0:02:37.4]} 10... Nc7 {[%clk 0:02:50.7]} 11. a4
{[%clk 0:02:35.6]} 11... a6 {[%clk 0:02:49.6]} 12. Bf1 {[%clk 0:02:32.4]} 12...
Ne5 {[%clk 0:02:42.6]} 13. Be2 {[%clk 0:02:30.6]} 13... Bxf3 {[%clk 0:02:38.7]}
14. gxf3 {[%clk 0:02:29.3]} 14... e6 {[%clk 0:02:31.5]} 15. f4 {[%clk
0:02:24.6]} 15... Nd7 {[%clk 0:02:27.4]} 16. Bg4 {[%clk 0:02:07.6]} 16... exd5
{[%clk 0:02:18.6]} 17. cxd5 {[%clk 0:01:59]} 17... f5 {[%clk 0:01:56.9]} 18. Bh3
{[%clk 0:01:53.7]} 18... Qh4 {[%clk 0:01:39.9]} 19. Bg2 {[%clk 0:01:48.7]} 19...
Rae8 {[%clk 0:01:38.5]} 20. Ra3 {[%clk 0:01:34.4]} 20... Nf6 {[%clk 0:01:22.3]}
21. h3 {[%clk 0:01:08.7]} 21... fxe4 {[%clk 0:01:13.8]} 22. Bc1 {[%clk
0:01:07.9]} 22... Nh5 {[%clk 0:00:58.2]} 23. Rxe4 {[%clk 0:00:32.5]} 23... Rxe4
{[%clk 0:00:51.8]} 24. Nxe4 {[%clk 0:00:33.4]} 24... Nxf4 {[%clk 0:00:50]} 25.
Qg4 {[%clk 0:00:33.2]} 25... Qxg4 {[%clk 0:00:48.2]} 26. hxg4 {[%clk 0:00:34.1]}
26... Ne2+ {[%clk 0:00:47.7]} 27. Kf1 {[%clk 0:00:31.6]} 27... Nxc1 {[%clk
0:00:47.3]} 28. Nxd6 {[%clk 0:00:29.7]} 28... Bxb2 {[%clk 0:00:40.2]} 29. Re3
{[%clk 0:00:24.7]} 29... Bd4 {[%clk 0:00:39.2]} 0-1

[Event "*** SCC Grand Prix: Titled Tuesday Blitz"]
[Site "Chess.com"]
[Date "2020.06.09"]
[Round "5"]
[White "DaggiGretarsson"]
[Black "ARMQUEEN"]
[Result "1-0"]
[WhiteElo "2597"]
[BlackElo "2302"]
[TimeControl "180+1"]
[EndTime "9:55:38 PDT"]
[Termination "DaggiGretarsson won by resignation"]

1. d4 {[%clk 0:03:00]} 1... Nf6 {[%clk 0:02:58.4]} 2. c4 {[%clk 0:02:59.4]} 2...
c5 {[%clk 0:02:58.3]} 3. Nf3 {[%clk 0:02:57.6]} 3... cxd4 {[%clk 0:02:56.8]} 4.
Nxd4 {[%clk 0:02:57.7]} 4... Nc6 {[%clk 0:02:56.3]} 5. Nc3 {[%clk 0:02:56.6]}
5... g6 {[%clk 0:02:56.5]} 6. e4 {[%clk 0:02:54.8]} 6... Nxd4 {[%clk 0:02:56.6]}
7. Qxd4 {[%clk 0:02:54.4]} 7... d6 {[%clk 0:02:57.5]} 8. Be2 {[%clk 0:02:50.1]}
8... Bg7 {[%clk 0:02:57.5]} 9. Be3 {[%clk 0:02:39.7]} 9... O-O {[%clk
0:02:55.1]} 10. Qd2 {[%clk 0:02:38.4]} 10... a5 {[%clk 0:02:54.5]} 11. f3 {[%clk
0:02:31.1]} 11... a4 {[%clk 0:02:52.2]} 12. Rc1 {[%clk 0:02:28.1]} 12... Qa5
{[%clk 0:02:51.4]} 13. O-O {[%clk 0:02:16]} 13... Be6 {[%clk 0:02:48]} 14. Rfd1
{[%clk 0:02:15.1]} 14... Rfc8 {[%clk 0:02:46.1]} 15. Nd5 {[%clk 0:01:25.9]}
15... Qxd2 {[%clk 0:02:43.4]} 16. Bxd2 {[%clk 0:01:16.7]} 16... Nxd5 {[%clk
0:02:41.1]} 17. cxd5 {[%clk 0:01:11.8]} 17... Bd7 {[%clk 0:02:40.4]} 18. Bc3
{[%clk 0:00:39.4]} 18... Bh6 {[%clk 0:02:28.5]} 19. Rb1 {[%clk 0:00:36]} 19...
b5 {[%clk 0:02:24.9]} 20. Kf2 {[%clk 0:00:35]} 20... a3 {[%clk 0:02:17.1]} 21.
Bb4 {[%clk 0:00:26.1]} 21... axb2 {[%clk 0:02:05.5]} 22. Rxb2 {[%clk 0:00:25.8]}
22... Bg7 {[%clk 0:02:05]} 23. Rbd2 {[%clk 0:00:22.2]} 23... Bc3 {[%clk
0:02:04.1]} 24. Bxc3 {[%clk 0:00:21.8]} 24... Rxc3 {[%clk 0:02:05]} 25. Rb1
{[%clk 0:00:22]} 25... Ra5 {[%clk 0:02:02.9]} 26. Rdb2 {[%clk 0:00:20.7]} 26...
Rc5 {[%clk 0:01:50.5]} 27. Bd1 {[%clk 0:00:20.2]} 27... Kg7 {[%clk 0:01:46.8]}
28. Bb3 {[%clk 0:00:19.9]} 28... Kf6 {[%clk 0:01:46]} 29. Ke3 {[%clk 0:00:20]}
29... g5 {[%clk 0:01:44.6]} 30. Rd2 {[%clk 0:00:18.1]} 30... Ra7 {[%clk
0:01:43.3]} 31. g3 {[%clk 0:00:17.6]} 31... Rac7 {[%clk 0:01:42.3]} 32. f4
{[%clk 0:00:17.7]} 32... h6 {[%clk 0:01:41.3]} 33. Kd4 {[%clk 0:00:17.1]} 33...
e5+ {[%clk 0:01:38.9]} 34. dxe6 {[%clk 0:00:16.5]} 34... fxe6 {[%clk 0:01:39.8]}
35. e5+ {[%clk 0:00:15.9]} 35... dxe5+ {[%clk 0:01:38.6]} 36. fxe5+ {[%clk
0:00:16.2]} 36... Rxe5 {[%clk 0:01:38.3]} 37. Rf1+ {[%clk 0:00:14.9]} 37... Rf5
{[%clk 0:01:38.5]} 38. Re1 {[%clk 0:00:15.2]} 38... Rcc5 {[%clk 0:01:34.3]} 39.
Rde2 {[%clk 0:00:14.7]} 39... e5+ {[%clk 0:01:33.6]} 40. Kxc5 {[%clk 0:00:14.2]}
40... Be8 {[%clk 0:01:31.5]} 41. Kd6 {[%clk 0:00:14.1]} 41... Rf3 {[%clk
0:01:26.2]} 42. Rxe5 {[%clk 0:00:14.2]} 42... Rc3 {[%clk 0:01:25.9]} 43. Rxe8
{[%clk 0:00:13]} 1-0

[Event "*** SCC Grand Prix: Titled Tuesday Blitz"]
[Site "Chess.com"]
[Date "2020.06.09"]
[Round "5"]
[White "HanSchut"]
[Black "mortngabriel"]
[Result "0-1"]
[WhiteElo "2188"]
[BlackElo "2457"]
[TimeControl "180+1"]
[EndTime "9:55:38 PDT"]
[Termination "mortngabriel won on time"]

1. e4 {[%clk 0:02:35]} 1... c5 {[%clk 0:02:57.8]} 2. Nf3 {[%clk 0:02:34.7]} 2...
d6 {[%clk 0:02:57.8]} 3. d4 {[%clk 0:02:35.1]} 3... cxd4 {[%clk 0:02:58.7]} 4.
Nxd4 {[%clk 0:02:35.8]} 4... Nf6 {[%clk 0:02:59.3]} 5. f3 {[%clk 0:02:36.3]}
5... g6 {[%clk 0:03:00.2]} 6. c4 {[%clk 0:02:36.4]} 6... Bg7 {[%clk 0:03:00.8]}
7. Be3 {[%clk 0:02:36.9]} 7... O-O {[%clk 0:03:01.4]} 8. Qd2 {[%clk 0:02:37.5]}
8... Nc6 {[%clk 0:03:01.8]} 9. Nc3 {[%clk 0:02:38.1]} 9... Bd7 {[%clk
0:03:01.3]} 10. Rc1 {[%clk 0:02:37.5]} 10... a5 {[%clk 0:02:59.9]} 11. b3 {[%clk
0:02:37.2]} 11... Nxd4 {[%clk 0:03:00.1]} 12. Bxd4 {[%clk 0:02:37.4]} 12... Bc6
{[%clk 0:03:01]} 13. Be2 {[%clk 0:02:36.7]} 13... Nd7 {[%clk 0:02:59.2]} 14. Be3
{[%clk 0:02:36.7]} 14... Nc5 {[%clk 0:02:58.8]} 15. O-O {[%clk 0:02:35.3]} 15...
e6 {[%clk 0:02:55.3]} 16. Rfd1 {[%clk 0:02:31.1]} 16... Be5 {[%clk 0:02:54.4]}
17. Bf1 {[%clk 0:02:12.8]} 17... f5 {[%clk 0:02:52.8]} 18. exf5 {[%clk
0:02:07.1]} 18... Rxf5 {[%clk 0:02:53.7]} 19. f4 {[%clk 0:02:02.2]} 19... Bxc3
{[%clk 0:01:55.9]} 20. Qxc3 {[%clk 0:02:00.5]} 20... Ne4 {[%clk 0:01:56.8]} 21.
Qc2 {[%clk 0:01:46.6]} 21... Qh4 {[%clk 0:01:43.9]} 22. Bd3 {[%clk 0:01:37.4]}
22... Rh5 {[%clk 0:01:43.2]} 23. Bxe4 {[%clk 0:01:25.1]} 23... Qxh2+ {[%clk
0:01:43]} 24. Kf1 {[%clk 0:00:57.7]} 24... Qg3 {[%clk 0:01:34.3]} 25. Bxc6
{[%clk 0:00:41]} 25... Qxe3 {[%clk 0:01:30.4]} 26. g3 {[%clk 0:00:14.1]} 26...
bxc6 {[%clk 0:01:21.7]} 27. Qg2 {[%clk 0:00:14.6]} 27... d5 {[%clk 0:01:10.1]}
28. cxd5 {[%clk 0:00:13.8]} 28... cxd5 {[%clk 0:01:10.6]} 29. Qf2 {[%clk
0:00:11.4]} 29... Rh1+ {[%clk 0:01:09.4]} 30. Kg2 {[%clk 0:00:11.5]} 30... Rh2+
{[%clk 0:01:09.6]} 31. Kxh2 {[%clk 0:00:01.8]} 31... Qxf2+ {[%clk 0:01:10.5]}
32. Kh3 {[%clk 0:00:02]} 32... Qxa2 {[%clk 0:01:06.6]} 0-1

[Event "*** SCC Grand Prix: Titled Tuesday Blitz"]
[Site "Chess.com"]
[Date "2020.06.09"]
[Round "5"]
[White "Ladislav1969"]
[Black "PawnEatingZombie"]
[Result "1-0"]
[WhiteElo "2318"]
[BlackElo "2106"]
[TimeControl "180+1"]
[EndTime "9:55:40 PDT"]
[Termination "Ladislav1969 won by resignation"]

1. e4 {[%clk 0:03:00.9]} 1... c6 {[%clk 0:02:59.6]} 2. d4 {[%clk 0:03:00.9]}
2... d5 {[%clk 0:02:59.4]} 3. e5 {[%clk 0:03:01.8]} 3... Bf5 {[%clk 0:02:58.8]}
4. c3 {[%clk 0:03:02.4]} 4... e6 {[%clk 0:02:58.3]} 5. Nd2 {[%clk 0:03:00.7]}
5... Nd7 {[%clk 0:02:56]} 6. Nb3 {[%clk 0:02:59.4]} 6... Bg6 {[%clk 0:02:54.3]}
7. Nf3 {[%clk 0:02:59.2]} 7... Nh6 {[%clk 0:02:44.1]} 8. Be2 {[%clk 0:02:55.9]}
8... Nf5 {[%clk 0:02:41.6]} 9. Bg5 {[%clk 0:02:32]} 9... Be7 {[%clk 0:02:38.3]}
10. h4 {[%clk 0:02:19.7]} 10... h6 {[%clk 0:02:29.2]} 11. Bxe7 {[%clk
0:02:18.5]} 11... Nxe7 {[%clk 0:02:28.1]} 12. h5 {[%clk 0:02:12.3]} 12... Bh7
{[%clk 0:02:26.5]} 13. O-O {[%clk 0:02:11.6]} 13... O-O {[%clk 0:02:24.9]} 14.
Qd2 {[%clk 0:02:10.5]} 14... Qb6 {[%clk 0:02:05.8]} 15. Bd3 {[%clk 0:01:58.7]}
15... Bxd3 {[%clk 0:02:04.3]} 16. Qxd3 {[%clk 0:01:58.8]} 16... c5 {[%clk
0:02:03.8]} 17. Qe3 {[%clk 0:01:47.6]} 17... cxd4 {[%clk 0:01:51.3]} 18. Nbxd4
{[%clk 0:01:36.2]} 18... Rac8 {[%clk 0:01:33.9]} 19. Rab1 {[%clk 0:01:36]} 19...
Nc6 {[%clk 0:01:22.9]} 20. g4 {[%clk 0:01:28.3]} 20... a6 {[%clk 0:01:12.7]} 21.
g5 {[%clk 0:01:23.3]} 21... hxg5 {[%clk 0:01:10.5]} 22. Nxg5 {[%clk 0:01:06.6]}
22... Nxd4 {[%clk 0:00:38.7]} 23. cxd4 {[%clk 0:01:04.5]} 23... Qb5 {[%clk
0:00:24.9]} 24. Rfc1 {[%clk 0:00:52.9]} 24... Nb6 {[%clk 0:00:17]} 25. b3 {[%clk
0:00:47.9]} 25... Qd7 {[%clk 0:00:11.7]} 26. Qd3 {[%clk 0:00:46.7]} 1-0

[Event "*** SCC Grand Prix: Titled Tuesday Blitz"]
[Site "Chess.com"]
[Date "2020.06.09"]
[Round "5"]
[White "Arkady_Gitelson"]
[Black "Chess_Boxer123"]
[Result "1-0"]
[WhiteElo "2534"]
[BlackElo "2721"]
[TimeControl "180+1"]
[EndTime "9:55:41 PDT"]
[Termination "Arkady_Gitelson won by resignation"]

1. e4 {[%clk 0:03:00.9]} 1... c5 {[%clk 0:02:53]} 2. b3 {[%clk 0:03:00.3]} 2...
g6 {[%clk 0:02:48.5]} 3. Bb2 {[%clk 0:03:00.1]} 3... Nf6 {[%clk 0:02:48.7]} 4.
e5 {[%clk 0:02:57.3]} 4... Nd5 {[%clk 0:02:48.6]} 5. d4 {[%clk 0:02:57.4]} 5...
cxd4 {[%clk 0:02:29.3]} 6. Qxd4 {[%clk 0:02:58.3]} 6... Nc7 {[%clk 0:02:29.6]}
7. e6 {[%clk 0:02:40.4]} 7... f6 {[%clk 0:02:28.8]} 8. exd7+ {[%clk 0:02:40.5]}
8... Bxd7 {[%clk 0:02:22.5]} 9. Bc4 {[%clk 0:02:38.4]} 9... Nc6 {[%clk
0:02:20.2]} 10. Qe3 {[%clk 0:02:35.9]} 10... b5 {[%clk 0:02:09.9]} 11. Bxf6
{[%clk 0:02:21.1]} 11... Bh6 {[%clk 0:01:53.2]} 12. Qxh6 {[%clk 0:02:17.3]}
12... exf6 {[%clk 0:01:52.7]} 13. Bd3 {[%clk 0:02:03.9]} 13... Ne5 {[%clk
0:01:36.7]} 14. Ne2 {[%clk 0:01:52.2]} 14... Qe7 {[%clk 0:01:00.5]} 15. Nbc3
{[%clk 0:01:50.8]} 15... Nxd3+ {[%clk 0:00:55.9]} 16. cxd3 {[%clk 0:01:50.4]}
16... b4 {[%clk 0:00:56.8]} 17. Ne4 {[%clk 0:01:47.8]} 17... f5 {[%clk
0:00:54.1]} 18. N4g3 {[%clk 0:01:47.3]} 18... Nd5 {[%clk 0:00:29.4]} 19. O-O
{[%clk 0:01:43.4]} 19... Qf8 {[%clk 0:00:25.1]} 20. Qd2 {[%clk 0:01:14.2]} 20...
Qf6 {[%clk 0:00:24.3]} 21. Nf4 {[%clk 0:01:07.4]} 21... Qc3 {[%clk 0:00:16.7]}
22. Qe2+ {[%clk 0:00:56.9]} 22... Ne7 {[%clk 0:00:14.1]} 23. Nd5 {[%clk
0:00:53.2]} 23... Qc5 {[%clk 0:00:11]} 24. Rfe1 {[%clk 0:00:52.5]} 1-0

[Event "*** SCC Grand Prix: Titled Tuesday Blitz"]
[Site "Chess.com"]
[Date "2020.06.09"]
[Round "5"]
[White "Nor1lsk"]
[Black "Shoooting_Star"]
[Result "1-0"]
[WhiteElo "2603"]
[BlackElo "2713"]
[TimeControl "180+1"]
[EndTime "9:55:46 PDT"]
[Termination "Nor1lsk won by resignation"]

1. e4 {[%clk 0:03:00.9]} 1... c5 {[%clk 0:03:00.3]} 2. d3 {[%clk 0:03:00.7]}
2... g6 {[%clk 0:02:58.5]} 3. g3 {[%clk 0:03:00.8]} 3... Bg7 {[%clk 0:02:58.8]}
4. Bg2 {[%clk 0:03:01]} 4... e6 {[%clk 0:02:59.4]} 5. f4 {[%clk 0:03:00.9]} 5...
Ne7 {[%clk 0:02:58.7]} 6. Nf3 {[%clk 0:03:01.3]} 6... Nbc6 {[%clk 0:02:58.6]} 7.
O-O {[%clk 0:03:01.8]} 7... d5 {[%clk 0:02:55.4]} 8. c3 {[%clk 0:03:01.3]} 8...
O-O {[%clk 0:02:53.6]} 9. Na3 {[%clk 0:03:00.5]} 9... Rb8 {[%clk 0:02:48.1]} 10.
Nc2 {[%clk 0:02:57.3]} 10... Qc7 {[%clk 0:02:42.4]} 11. e5 {[%clk 0:02:57]}
11... h5 {[%clk 0:02:38.2]} 12. Be3 {[%clk 0:02:56.5]} 12... b6 {[%clk
0:02:36.2]} 13. h3 {[%clk 0:02:56.1]} 13... Rd8 {[%clk 0:02:32.8]} 14. Bf2
{[%clk 0:02:56.1]} 14... Ba6 {[%clk 0:02:20.2]} 15. Re1 {[%clk 0:02:55.9]} 15...
d4 {[%clk 0:02:01.8]} 16. c4 {[%clk 0:02:54.5]} 16... b5 {[%clk 0:02:00.1]} 17.
b3 {[%clk 0:02:54.5]} 17... bxc4 {[%clk 0:02:00]} 18. bxc4 {[%clk 0:02:51.6]}
18... Nb4 {[%clk 0:01:59.5]} 19. Ng5 {[%clk 0:02:45.9]} 19... Nec6 {[%clk
0:01:47]} 20. Ne4 {[%clk 0:02:44.3]} 20... Nxc2 {[%clk 0:01:47]} 21. Qxc2 {[%clk
0:02:44.6]} 21... Nb4 {[%clk 0:01:47.2]} 22. Qd2 {[%clk 0:02:30.2]} 22... Bb7
{[%clk 0:01:45.9]} 23. g4 {[%clk 0:02:25.4]} 23... hxg4 {[%clk 0:01:43.8]} 24.
hxg4 {[%clk 0:02:26.3]} 24... Bxe4 {[%clk 0:01:36.4]} 25. Bxe4 {[%clk 0:02:26]}
25... g5 {[%clk 0:01:29.8]} 26. Bg3 {[%clk 0:02:20.5]} 26... gxf4 {[%clk
0:01:29.6]} 27. Bxf4 {[%clk 0:02:20]} 27... Nc6 {[%clk 0:01:19.8]} 28. Qh2
{[%clk 0:02:12.6]} 28... Ne7 {[%clk 0:01:16.7]} 29. Qh7+ {[%clk 0:02:03.4]}
29... Kf8 {[%clk 0:01:14.9]} 30. Rf1 {[%clk 0:01:49.3]} 30... Ng8 {[%clk
0:01:05.9]} 31. Bg5 {[%clk 0:01:32.8]} 31... Qxe5 {[%clk 0:00:40.3]} 32. Bf4
{[%clk 0:01:26.9]} 32... Qf6 {[%clk 0:00:28.9]} 33. Bxb8 {[%clk 0:01:25]} 33...
Qg5 {[%clk 0:00:29.3]} 34. Bg3 {[%clk 0:01:18.5]} 34... Qxg4 {[%clk 0:00:25.8]}
35. Qh4 {[%clk 0:01:14.1]} 35... Qxh4 {[%clk 0:00:23.9]} 36. Bxh4 {[%clk
0:01:14]} 36... Rb8 {[%clk 0:00:24.8]} 37. Rab1 {[%clk 0:01:13.6]} 37... Rxb1
{[%clk 0:00:23.1]} 38. Rxb1 {[%clk 0:01:13.4]} 38... f5 {[%clk 0:00:24]} 39.
Rb8+ {[%clk 0:01:09.6]} 39... Kf7 {[%clk 0:00:23.7]} 40. Bf3 {[%clk 0:01:09.7]}
40... Bh6 {[%clk 0:00:23.5]} 41. Bh5+ {[%clk 0:01:07]} 41... Kg7 {[%clk
0:00:24.1]} 42. Rb7+ {[%clk 0:01:06.8]} 42... Kf8 {[%clk 0:00:23.9]} 43. Rf7+
{[%clk 0:01:04.9]} 1-0

[Event "*** SCC Grand Prix: Titled Tuesday Blitz"]
[Site "Chess.com"]
[Date "2020.06.09"]
[Round "5"]
[White "Slovak_fighter2000"]
[Black "LiverpooL174"]
[Result "0-1"]
[WhiteElo "2443"]
[BlackElo "2668"]
[TimeControl "180+1"]
[EndTime "9:55:47 PDT"]
[Termination "LiverpooL174 won by resignation"]

1. d4 {[%clk 0:01:28.6]} 1... Nf6 {[%clk 0:02:59.9]} 2. Nf3 {[%clk 0:01:27.7]}
2... d6 {[%clk 0:03:00.8]} 3. c4 {[%clk 0:01:26.6]} 3... Nbd7 {[%clk 0:03:01]}
4. Nc3 {[%clk 0:01:27.4]} 4... e5 {[%clk 0:03:00.2]} 5. e4 {[%clk 0:01:27.3]}
5... c6 {[%clk 0:03:00.8]} 6. Be2 {[%clk 0:01:27.4]} 6... g6 {[%clk 0:02:58.7]}
7. Be3 {[%clk 0:01:26.6]} 7... Bg7 {[%clk 0:02:59.1]} 8. h3 {[%clk 0:01:26.8]}
8... O-O {[%clk 0:02:58.2]} 9. d5 {[%clk 0:01:26.4]} 9... cxd5 {[%clk
0:02:55.3]} 10. cxd5 {[%clk 0:01:27.3]} 10... a6 {[%clk 0:02:56.2]} 11. Nd2
{[%clk 0:01:27.5]} 11... b5 {[%clk 0:02:48.5]} 12. g4 {[%clk 0:01:27.1]} 12...
Nb6 {[%clk 0:02:36.6]} 13. a3 {[%clk 0:01:24.1]} 13... Nfd7 {[%clk 0:02:33.2]}
14. h4 {[%clk 0:01:21.9]} 14... f5 {[%clk 0:02:26.2]} 15. f3 {[%clk 0:01:15.5]}
15... fxg4 {[%clk 0:02:23.2]} 16. fxg4 {[%clk 0:01:15.3]} 16... Nc5 {[%clk
0:02:24.1]} 17. Qc2 {[%clk 0:01:05.8]} 17... Bd7 {[%clk 0:02:22]} 18. O-O-O
{[%clk 0:00:59.1]} 18... Rc8 {[%clk 0:02:22.5]} 19. Kb1 {[%clk 0:00:57.7]} 19...
Nca4 {[%clk 0:02:18.8]} 20. h5 {[%clk 0:00:38.7]} 20... Nxc3+ {[%clk 0:02:18.1]}
21. bxc3 {[%clk 0:00:39.6]} 21... g5 {[%clk 0:02:12.8]} 22. Ka2 {[%clk
0:00:34.6]} 22... h6 {[%clk 0:02:12.5]} 23. Rhf1 {[%clk 0:00:33.8]} 23... Na4
{[%clk 0:02:02.3]} 24. Nb1 {[%clk 0:00:32.2]} 24... Qa5 {[%clk 0:01:50.6]} 25.
Bd2 {[%clk 0:00:28.3]} 25... Rf4 {[%clk 0:01:30.3]} 26. Qd3 {[%clk 0:00:24]}
26... Nc5 {[%clk 0:01:23.3]} 27. c4 {[%clk 0:00:17.9]} 27... Qb6 {[%clk
0:01:21.5]} 28. Qc2 {[%clk 0:00:15.2]} 28... bxc4 {[%clk 0:01:17.8]} 29. Bxf4
{[%clk 0:00:14]} 29... exf4 {[%clk 0:01:17.4]} 30. Nc3 {[%clk 0:00:13.6]} 30...
Qb3+ {[%clk 0:01:08.2]} 31. Qxb3 {[%clk 0:00:09.9]} 31... cxb3+ {[%clk
0:01:09.1]} 32. Kb2 {[%clk 0:00:09.5]} 32... Na4+ {[%clk 0:01:09.1]} 33. Kxb3
{[%clk 0:00:09.7]} 33... Nxc3 {[%clk 0:01:09.2]} 34. Rd2 {[%clk 0:00:08.4]}
34... Nxe2 {[%clk 0:01:07.9]} 35. Rxe2 {[%clk 0:00:07.7]} 35... Bb5 {[%clk
0:01:08.4]} 0-1